Cogmind - Beta 15 @@@ ROGUE MODE // 2025.08.04 @ 18:51:53 Player: C0-2MO Result: Destroyed 0b10! Performance ------------- Evolutions (9) 4500 Regions Visited (27) 5400 Robots Destroyed (122) 610 Value Destroyed (6363) 6363 Prototype IDs (63) 1260 Alien Tech Used (5) 1000 Bonus (24400) 24400 TOTAL SCORE: 43533 Bonus ------- Triggered Max Security 1000 High Alert Combat Kills 899 Follower Combat Kills 400 Entered Garrisons 1200 Used RIF Installer 3000 Entered DSFs 500 Aligned with FarCom 300 Met Zhirov 300 Used Core Reset Matrix 3000 Met Sigix 2000 Recovered Sigix Corpse 4000 Escaped with Sigix 5000 Win 3000 Friendly Fire -199 Cogmind --------- Core Integrity 1572/1600 Matter 128/300 Energy 330/440 System Corruption 0% Temperature Warm (194) Movement Flying (15) Location Tau Ceti IV Orbit Parts ------- > --- POWER (2) -------- Micro Antimatter Reactor Light Quantum Reactor > --- PROPULSION (10) -- Cooled Field Propulsion Drive Cooled Field Propulsion Drive Electron Diverter Improved Diametric Drive Improved Diametric Drive Improved Diametric Drive Impulse Thruster Array Impulse Thruster Array > --- UTILITY (10) ----- Advanced Power Amplifier Advanced Heat Sink Large Storage Unit Compact Battery Structural Scanner Improved Cloaking Device Graphene Brace Hacking Suite Improved System Shield Experimental System Shield > --- WEAPON (3) ------- Sigix Broadsword > --- INVENTORY (15) --- Light Quantum Reactor Cooled Nuclear Pulse Thruster Impulse Thruster Advanced Point Defense System Advanced Point Defense System Transdimensional Reconstructor Core Cannon Sigix Containment Pod Sigix Corpse Sigix Corpse Peak State ------------ > --- POWER ------------ Micro Antimatter Reactor Light Quantum Reactor > --- PROPULSION ------- Cooled Field Propulsion Drive Cooled Field Propulsion Drive Electron Diverter Improved Diametric Drive Improved Diametric Drive Improved Diametric Drive Impulse Thruster Array Impulse Thruster Array > --- UTILITY ---------- Advanced Power Amplifier Medium Storage Unit Structural Scanner Machine Analyzer Improved Cloaking Device Graphene Brace Experimental Focal Shield Hacking Suite Improved System Shield Experimental System Shield > --- WEAPON ----------- Sigix Broadsword > --- INVENTORY -------- Cooled Nuclear Pulse Thruster Transdimensional Reconstructor Core Cannon Improved Plasma Cutter Sapper Charge Sigix Containment Pod Sigix Corpse Sigix Corpse [Rating: 191] Favorites ----------- Power Micro Antimatter Reactor Engine Light Angular Momentum Engine Power Core Light Nuclear Core Reactor Micro Antimatter Reactor Propulsion Cooled Nuclear Pulse Thruster Treads Light Treads Wheel Compact Wheel Hover Unit Airjet Flight Unit Cooled Nuclear Pulse Thruster Utility Hacking Suite Device Advanced Heat Sink Storage Small Storage Unit Processor Machine Analyzer Hackware Hacking Suite Protection Experimental Propulsion Shielding Artifact Phase Redirector Weapon Sigix Broadsword Energy Gun Medium Laser Energy Cannon Core Cannon Ballistic Gun Assault Rifle Ballistic Cannon AWS/Autocannon Launcher Improved Grenade Launcher Special Weapon Remote Datajack Slashing Weapon Sigix Broadsword Piercing Weapon Lance Special Melee Weapon Improved Datajack Build | -11 -10 -10 -10 -9 -8 -8 -8 -8 -7 -7 -6 -6 -5 -5 -4 -4 -4 -4 -3 -3 -3 -3 -3 -2 -2 -2 -1 ------- Run | Yrd Mat Min Exi Min Mat Gar Mat Gar Fac Gar Fac DSF Fac Gar Fac Upp Upp Zhi Pro Res Gar Res Qua Res Gar Res Acc Slots Evolved 18 | . . . . . 4 . . . 2 . 2 . 2 . 2 . . . . 2 . . . 2 . . 2 Power 1 | . . . . . . . . . . . . . . . 1 . . . . . . . . . . . . Propulsion 8 | . . . . . 2 . . . . . 1 . 1 . 1 . . . . 1 . . . 1 . . 1 Utility 8 | . . . . . 1 . . . 2 . 1 . 1 . . . . . . 1 . . . 1 . . 1 Weapon 1 | . . . . . 1 . . . . . . . . . . . . . . . . . . . . . . Parts Attached 181 | 5 10 2 3 . 10 14 12 2 22 3 1 2 6 . 4 3 3 8 2 11 3 3 20 10 . 9 13 Power 16 | . . . . . 2 2 1 . 2 . . . 1 . . . 1 1 . 1 . 1 2 2 . . . Engine 7 | . . . . . 2 2 . . 1 . . . 1 . . . 1 . . . . . . . . . . Core 3 | . . . . . . . 1 . 1 . . . . . . . . . . 1 . . . . . . . Reactor 6 | . . . . . . . . . . . . . . . . . . 1 . . . 1 2 2 . . . Propulsion 67 | 2 7 1 2 . 4 7 7 2 9 2 . . 3 . 1 . 2 3 1 3 1 . 4 1 . 2 3 Treads 13 | 2 . . . . . 3 3 2 1 2 . . . . . . . . . . . . . . . . . Leg . | . . . . . . . . . . . . . . . . . . . . . . . . . . . . Wheel 1 | . . . . . . 1 . . . . . . . . . . . . . . . . . . . . . Hover 5 | . . . . . . . 1 . 4 . . . . . . . . . . . . . . . . . . Flight 48 | . 7 1 2 . 4 3 3 . 4 . . . 3 . 1 . 2 3 1 3 1 . 4 1 . 2 3 Utility 66 | 1 1 . 1 . 1 . . . 5 1 1 2 1 . 3 2 . 3 . 6 1 2 12 7 . 7 9 Device 33 | 1 . . . . . . . . . . . . 1 . 2 1 . . . 4 . 1 10 5 . 2 6 Storage 7 | . 1 . . . . . . . 1 . . . . . . . . 1 . 1 . . . . . 1 2 Processor 3 | . . . . . . . . . . . . . . . . . . . . . . . . . . 2 1 Hackware 19 | . . . 1 . 1 . . . 4 . 1 2 . . 1 1 . 1 . 1 1 1 1 2 . 1 . Protection 3 | . . . . . . . . . . 1 . . . . . . . 1 . . . . . . . 1 . Artifact 1 | . . . . . . . . . . . . . . . . . . . . . . . 1 . . . . Weapon 32 | 2 2 1 . . 3 5 4 . 6 . . . 1 . . 1 . 1 1 1 1 . 2 . . . 1 Energy Gun 1 | 1 . . . . . . . . . . . . . . . . . . . . . . . . . . . Energy Cannon 1 | . . . . . . . . . . . . . . . . . . . . . . . . . . . 1 Ballistic Gun 9 | 1 1 . . . 3 3 1 . . . . . . . . . . . . . . . . . . . . Ballistic Cannon 2 | . . . . . . 1 1 . . . . . . . . . . . . . . . . . . . . Launcher 3 | . . . . . . 1 1 . 1 . . . . . . . . . . . . . . . . . . Special Weapon 4 | . 1 . . . . . . . 1 . . . . . . . . . . . 1 . 1 . . . . Impact Weapon . | . . . . . . . . . . . . . . . . . . . . . . . . . . . . Slashing Weapon 8 | . . 1 . . . . 1 . 2 . . . 1 . . 1 . . 1 . . . 1 . . . . Piercing Weapon 1 | . . . . . . . . . . . . . . . . . . . . 1 . . . . . . . Special Melee Weapon 3 | . . . . . . . . . 2 . . . . . . . . 1 . . . . . . . . . Unidentified Prototypes 17 | . . . . . . . 1 . 4 . . . . . . . . 5 . . . . 4 1 . . 2 Corrupted Parts 1 | . . . . . . . 1 . . . . . . . . . . . . . . . . . . . . System Corruption 7 | . . . . . . . 7 . . . . . . . . . . . . . . . . . . . . Parts Lost 44 | . 2 . . . 2 10 7 1 3 6 . 2 1 1 . 2 . . . 4 1 . 1 . 1 . . Power 5 | . . . . . 1 . 1 . . 1 . . . . . . . . . 2 . . . . . . . Propulsion 22 | . 1 . . . 1 6 4 1 2 1 . 2 . 1 . 1 . . . 1 1 . . . . . . Utility 7 | . 1 . . . . . . . . 2 . . 1 . . 1 . . . 1 . . 1 . . . . Weapon 10 | . . . . . . 4 2 . 1 2 . . . . . . . . . . . . . . 1 . . Highest Loss Streak 6 | . 1 . . . 1 5 6 1 2 5 . 2 1 1 . 1 . . . 4 1 . 1 . 1 . . To Critical Strikes 1 | . . . . . . 1 . . . . . . . . . . . . . . . . . . . . . Average Backups 6 | . 5 8 6 6 4 5 5 5 5 9 6 5 6 6 9 8 9 8 9 8 8 7 6 3 4 4 5 Power . | . 1 1 1 1 . . 1 . . . . . . . . . . . . . . . . . . . . Propulsion 1 | . 3 4 3 2 . . . 1 . 3 1 . . . . . . . . . 1 1 1 . . . 1 Utility 2 | . . 1 1 1 . 2 1 1 2 4 4 4 6 6 9 8 8 7 7 5 4 4 2 . 1 1 1 Weapon 1 | . . 1 1 2 2 2 2 1 1 . . . . . . . 1 1 1 1 1 1 1 1 1 1 1 Tool/Special . | . . . . . . . . . . . . . . . . . . . . . . . . . . . . Unused Backups 77 | . . . . . . . 2 . 3 . . . . . . . . 1 . 2 2 . 62 . . . 5 Power 9 | . . . . . . . . . 1 . . . . . . . . . . . . . 7 . . . 1 Propulsion 14 | . . . . . . . 1 . 1 . . . . . . . . . . . . . 11 . . . 1 Utility 35 | . . . . . . . 1 . 1 . . . . . . . . 1 . 2 2 . 27 . . . 1 Weapon 15 | . . . . . . . . . . . . . . . . . . . . . . . 15 . . . . Tool/Special 4 | . . . . . . . . . . . . . . . . . . . . . . . 2 . . . 2 Average Slot Usage (%) 80 | . 68 64 63 71 97 82 82 78 89 72 46 50 58 63 60 71 76 86 89 92 83 87 84 82 85 81 82 Engine 3 | . . . . . 8 9 4 7 . . . . 3 2 5 5 6 6 5 3 . . . . . . . Reactor 2 | . . . . . . . . . . . . . . . . . . 3 5 3 . 3 8 8 8 8 8 Treads 6 | . . . . . . 21 18 19 1 14 . . . . . . . . . . . . . . . . . Wheel 1 | . . . . . . 5 4 . . . . . . . . . . . . . . . . . . . . Hover 1 | . . . . . . . 1 9 5 . . . . . . . . . . . . . . . . . . Flight 20 | . 26 28 26 28 35 7 6 6 21 . 22 15 24 28 25 22 25 31 31 32 30 28 28 26 30 30 30 Device 8 | . 5 . . . . . . . . . . . . . 3 10 15 15 15 17 23 22 29 27 26 23 20 Storage 7 | . 13 14 14 14 9 9 8 9 6 7 6 6 5 5 5 5 5 5 5 4 4 4 4 4 4 4 6 Hackware 14 | . . . 5 14 17 18 18 18 29 27 15 27 18 14 12 17 12 10 10 11 4 8 2 5 8 10 12 Ballistic Gun 2 | . 14 7 2 . 17 4 5 . . . . . . . . . . . . . . . . . . . . Ballistic Cannon 1 | . . . . . . 5 5 5 . 1 . . . . . . . . . . . . . . . . . Special Weapon 2 | . 7 7 . . . . . . 2 3 . . 2 5 5 5 5 5 5 . 2 4 4 4 3 . . Slashing Weapon 4 | . . 6 14 14 9 1 6 3 8 7 . . 3 4 3 5 5 5 5 9 9 9 4 4 4 4 3 Peak Build Rating 191 | 4 6 7 13 12 26 47 47 53 59 77 29 30 49 47 66 70 72 97 99 115 112 119 162 177 182 174 191 Average Rating 70 | 3 5 6 9 12 23 38 24 42 42 58 27 27 39 42 55 64 69 85 91 110 107 116 148 167 181 169 184 On Entrance 64 | . 4 6 7 12 12 26 47 22 29 50 28 29 28 47 37 66 68 72 91 99 112 104 119 162 177 174 170 Naked Turns . | . . . . . . . . . . . . . . . . . . . . . . . . . . . . Heaviest Build 75 | 4 8 8 8 7 16 74 72 74 73 75 10 10 26 26 30 31 36 40 43 50 40 47 50 57 58 53 61 Greatest Support 140 | 3 8 8 8 8 17 60 82 64 64 140 12 12 28 28 37 37 39 43 46 55 55 52 55 63 63 66 81 Greatest Overweight (x) 4 | 1 . . . . . 4 2 1 3 . . . 1 . . . . . . 1 . . 2 . . . . Average Overweight (x) . | . . . . . . 1 . . . . . . . . . . . . . . . . . . . . . Largest Inventory Capacity 15 | 5 8 8 8 8 8 8 8 8 10 10 10 10 10 10 10 10 10 10 10 10 10 10 10 10 10 10 15 Average Capacity 8 | 5 7 8 8 8 8 8 7 8 8 10 10 10 10 10 10 10 10 10 10 10 10 10 10 10 10 10 11 Most Carried 14 | 1 8 8 8 8 8 8 8 8 10 10 10 8 8 10 10 10 10 10 10 10 10 10 10 10 10 10 14 Average Carried 7 | . 5 7 7 8 6 6 7 5 7 9 5 6 6 6 9 8 10 9 9 9 9 8 9 9 10 9 10 Final Capacity 15 | 5 8 8 8 8 8 8 8 8 10 10 10 10 10 10 10 10 10 10 10 10 10 10 10 10 10 10 15 Final Carried 12 | 1 8 8 8 8 8 6 8 8 10 10 5 8 6 10 9 10 10 10 10 10 10 10 10 10 10 9 12 Class Distribution -------------------- 20% | Hacker-Sprinter 17% | Scavenger-Sprinter 12% | Bothacker-Sprinter 11% | Scavenger-Skirmisher 9% | Hacker-Mutant 8% | Mutant 7% | Scavenger-Mutant 5% | Hacker-Skirmisher Dominant Class ---------------- Mutant | -10/Materials Mutant | -10/Mines Mutant | -10/Exiles Mutant | -9/Mines Hacker-Sprinter | -8/Materials Scavenger-Skirmisher | -8/Garrison Scavenger-Mutant | -8/Materials Hacker-Skirmisher | -8/Garrison Hacker-Sprinter | -7/Factory Bothacker-Mutant | -7/Garrison Bothacker-Mutant | -6/Factory Bothacker-Sprinter | -6/DSF Bothacker-Sprinter | -5/Factory Bothacker-Sprinter | -5/Garrison Bothacker-Sprinter | -4/Factory Bothacker-Sprinter | -4/Upper Caves Bothacker-Sprinter | -4/Upper Caves Bothacker-Sprinter | -4/Zhirov Scavenger-Sprinter | -3/Proximity Caves Scavenger-Sprinter | -3/Research Bothacker-Sprinter | -3/Garrison Bothacker-Sprinter | -3/Research Scavenger-Sprinter | -3/Quarantine Hacker-Sprinter | -2/Research Hacker-Sprinter | -2/Garrison Hacker-Sprinter | -2/Research Hacker-Sprinter | -1/Access Resources | -11 -10 -10 -10 -9 -8 -8 -8 -8 -7 -7 -6 -6 -5 -5 -4 -4 -4 -4 -3 -3 -3 -3 -3 -2 -2 -2 -1 ----------- Run | Yrd Mat Min Exi Min Mat Gar Mat Gar Fac Gar Fac DSF Fac Gar Fac Upp Upp Zhi Pro Res Gar Res Qua Res Gar Res Acc Matter Collected 3808 | 286 215 20 . . 212 506 473 63 447 93 . . 175 . 13 92 70 90 50 121 85 . 404 39 111 76 167 Remotely . | . . . . . . . . . . . . . . . . . . . . . . . . . . . . Salvage Created 4651 | 90 118 . . . 291 1027 743 426 415 209 . . 183 . 13 74 14 169 13 371 . . 147 39 111 31 167 Parts 245 | 5 11 . . . 22 61 49 13 17 15 . . 5 . 3 1 1 2 1 17 . . 3 2 9 2 6 Haulers Intercepted 7 | . 1 . . . . . 2 . 1 . . . . . . . . . . 2 . . . . . . 1 Recyclers Shooed 3 | 1 . . . . . . 2 . . . . . . . . . . . . . . . . . . . . Parts Field Recycled . | . . . . . . . . . . . . . . . . . . . . . . . . . . . . Retrieved Matter . | . . . . . . . . . . . . . . . . . . . . . . . . . . . . Parts Self-Destructed 5 | . . . . . . . . . . . . . . . . . 3 . 2 . . . . . . . . Prevented 2 | . . . . . . . . . . . . . . . . . . . 2 . . . . . . . . Kills | -11 -10 -10 -10 -9 -8 -8 -8 -8 -7 -7 -6 -6 -5 -5 -4 -4 -4 -4 -3 -3 -3 -3 -3 -2 -2 -2 -1 ------- Run | Yrd Mat Min Exi Min Mat Gar Mat Gar Fac Gar Fac DSF Fac Gar Fac Upp Upp Zhi Pro Res Gar Res Qua Res Gar Res Acc Combat Hostiles Destroyed 95 | . 4 . . . 6 26 21 12 6 6 . . 3 . . 1 1 . . 3 . . 2 . 3 1 . Melee 20 | . . . . . 1 . . . . 5 . . 3 . . 1 1 . . 3 . . 2 . 3 1 . Guns 21 | . 4 . . . 5 10 2 . . . . . . . . . . . . . . . . . . . . Cannons 46 | . . . . . . 15 14 11 5 1 . . . . . . . . . . . . . . . . . AOE 7 | . . . . . . 1 5 . 1 . . . . . . . . . . . . . . . . . . Classes Destroyed 15 | 2 3 . . . 2 . 5 1 . 1 . . . . . . . . 1 . . . . . . . . Builder 3 | . . . . . . . 2 . . . . . . . 1 . . . . . . . . . . . . Tunneler 1 | 1 . . . . . . . . . . . . . . . . . . . . . . . . . . . Hauler 7 | . 1 . . . . . 2 . 1 . . . . . . . . . . 2 . . . . . . 1 Recycler 6 | 1 . . . . 1 . 1 . 3 . . . . . . . . . . . . . . . . . . Minesweeper 1 | . . . . . . . . . . . . . . . . . . . 1 . . . . . . . . Mechanic 1 | . . . . . . . 1 . . . . . . . . . . . . . . . . . . . . Operator 4 | . 1 . . . . . 2 . . . . . . . . . . . . . . . . 1 . . . Watcher 3 | . . . . . . . 1 . . . . . . . . . . . . . . . . . . . 2 Swarmer 31 | . 4 . . . 2 6 8 . 2 4 . . . . . . 1 . . . . . . . 3 1 . Grunt 34 | . . . . . 1 14 9 5 . 2 . . 2 . . 1 . . . . . . . . . . . Brawler 2 | . . . . . . . 1 1 . . . . . . . . . . . . . . . . . . . Sentry 13 | . . . . . 3 6 1 1 2 . . . . . . . . . . . . . . . . . . Specialist 6 | . . . . . . . 2 2 . . . . . . . . . . . . . . 2 . . . . Hunter 2 | . . . . . . . . . . 1 . . 1 . . . . . . . . . . . . . . Programmer 8 | . . . . . . . . 3 2 . . . . . . . . . . 3 . . . . . . . Best Kill Streak 7 | 1 3 . . . 2 5 7 4 3 2 . . 2 . 1 1 1 . 1 3 . . 1 1 3 1 1 Combat Bots Only 6 | . 3 . . . 2 5 6 4 2 2 . . 2 . . 1 1 . . 3 . . 1 . 3 1 . Max Kills in Single Turn 3 | 1 1 . . . 1 2 3 1 1 1 . . 1 . 1 1 1 . 1 1 . . 1 1 1 1 1 Gunslinging . | . . . . . . . . . . . . . . . . . . . . . . . . . . . . Exploded 3 | . . . . . . 1 3 . 1 . . . . . . . . . . . . . . . . . . Melee 1 | . . . . . 1 . . . . 1 . . 1 . . 1 1 . . 1 . . 1 . 1 1 . Uniques/NPCs Destroyed . | . . . . . . . . . . . . . . . . . . . . . . . . . . . . Combat | -11 -10 -10 -10 -9 -8 -8 -8 -8 -7 -7 -6 -6 -5 -5 -4 -4 -4 -4 -3 -3 -3 -3 -3 -2 -2 -2 -1 -------- Run | Yrd Mat Min Exi Min Mat Gar Mat Gar Fac Gar Fac DSF Fac Gar Fac Upp Upp Zhi Pro Res Gar Res Qua Res Gar Res Acc Hostile Shots Fired 896 | . 24 14 . . 101 96 143 32 66 163 . 4 3 19 9 10 14 . 12 38 13 . 43 2 44 22 24 Missed 381 | . 11 7 . . 54 33 66 7 26 49 . 2 1 9 7 3 9 . 9 9 5 . 16 2 29 14 13 Hits 515 | . 13 7 . . 47 63 77 25 40 114 . 2 2 10 2 7 5 . 3 29 8 . 27 . 15 8 11 Melee 4 | . . . . . . . . . . 2 . . . . . . . . . . . . 2 . . . . Projectile 511 | . 13 7 . . 47 63 77 25 40 112 . 2 2 10 2 7 5 . 3 29 8 . 25 . 15 8 11 AOE 1 | . . . . . . . . . . . . . . . . . . . . 1 . . . . . . . Critical Strikes 20 | . . 2 . . 2 4 1 2 1 . . . . 1 . 1 . . 1 1 . . 2 . . 1 1 Actively Blocked 5 | . . . . . . . . . . . . . . . . . . . 1 . . . 2 . . 1 1 Part Disruptions 1 | . . . . . . . . . . . . . . . . . . . . 1 . . . . . . . Damage Taken 8393 | . 194 61 . . 560 716 1420 324 441 1774 . 110 42 184 31 156 69 . 60 768 253 . 593 . 310 202 125 Core 1270 | . 36 20 . . 125 105 258 15 44 258 . 49 19 82 15 46 14 . . 92 24 . 15 . 37 . 16 Absorbed by Shields 215 | . . . . . . 98 . 56 . . . . . 10 . . . . . . . . . . 51 . . Redirected to Shielding 157 | . . . . . . . . . . . . . . . . . . . 34 123 . . . . . . . Regen/Repaired (Parts) 1299 | . 53 . . . 38 . 202 . 163 . . . 89 . . . . . . . . 41 340 . 149 106 118 Core Remaining (%) 80 | 100 . . . 77 . . . 8 . 56 . 94 . 89 . . . . 93 . . . 89 . . 97 98 Volleys Fired 175 | 15 25 . . . 14 38 42 . 7 . . . 3 1 . 3 8 . 6 . 5 3 4 . . . 1 Largest 3 | 2 2 . . . 2 3 3 . 1 . . . 1 1 . 1 1 . 1 . 1 1 1 . . . 1 Hottest 300 | 70 120 . . . 48 78 92 . 36 . . . 5 5 . 5 5 . 5 . 7 7 7 . . . 300 Shots Fired 388 | 17 33 . . . 28 112 111 30 17 6 . . 3 1 . 3 8 . 6 . 5 3 4 . . . 1 Gun 203 | 17 30 . . . 28 86 42 . . . . . . . . . . . . . . . . . . . . Cannon 136 | . . . . . . 24 65 30 10 6 . . . . . . . . . . . . . . . . 1 Launcher 13 | . . . . . . 2 4 . 7 . . . . . . . . . . . . . . . . . . Special 36 | . 3 . . . . . . . . . . . 3 1 . 3 8 . 6 . 5 3 4 . . . . Kinetic 336 | 15 30 . . . 28 110 107 30 10 6 . . . . . . . . . . . . . . . . . Thermal 6 | 2 3 . . . . . . . . . . . . . . . . . . . . . . . . . 1 Explosive 13 | . . . . . . 2 4 . 7 . . . . . . . . . . . . . . . . . . Electromagnetic . | . . . . . . . . . . . . . . . . . . . . . . . . . . . . Robot Hit Streak 18 | 11 5 . . . 6 18 10 9 17 2 . . 5 6 . 9 5 . 4 . 1 1 3 . . . 4 Robot Miss Streak 11 | 2 4 . . . 4 4 11 3 . 1 . . . . . . 1 . 2 . 2 2 1 . . . . Penetration Max . | . . . . . . . . . . . . . . . . . . . . . . . . . . . . Secondary Targets 1 | . . . . . . 1 . . . . . . . . . . . . . . . . . . . . . Max Gunslinging Chain 1 | . . . . . . 1 . . . . . . . . . . . . . . . . . . . . . Autonomous 94 | . . . . . . 24 23 30 10 7 . . . . . . . . . . . . . . . . . Shots Hit Robots 341 | 15 17 . . . 20 79 65 21 27 16 . . 12 1 1 9 7 4 6 21 2 1 6 2 3 2 4 Core Hits 147 | 3 7 . . . 11 39 43 7 10 7 . . 4 . 1 1 1 1 . 7 . . . . 2 1 2 Critical Kills 1 | . 1 . . . . . . . . . . . . . . . . . . . . . . . . . . Critical Parts Destroyed 1 | . . . . . . 1 . . . . . . . . . . . . . . . . . . . . . Critical Strikes 16 | . 1 . . . . 4 . 2 1 2 . . 1 . . 1 . . . 3 . . . . . . 1 Destroy 4 | . 1 . . . . 2 . . . . . . . . . . . . . . . . . . . . 1 Blast 7 | . . . . . . 2 . 2 1 2 . . . . . . . . . . . . . . . . . Sever 3 | . . . . . . . . . . . . . 1 . . 1 . . . 1 . . . . . . . Impale 2 | . . . . . . . . . . . . . . . . . . . . 2 . . . . . . . Melee Attacks 324 | . . . . . 19 25 12 6 40 26 . . 12 4 3 11 9 4 3 61 4 1 28 4 12 23 17 Impact . | . . . . . . . . . . . . . . . . . . . . . . . . . . . . Slashing 297 | . . . . . 19 25 12 6 40 26 . . 12 4 3 11 9 4 3 34 4 1 28 4 12 23 17 Piercing 27 | . . . . . . . . . . . . . . . . . . . . 27 . . . . . . . Sneak Attacks 24 | . . . . . 1 . 4 . 4 . . . 4 . 1 . . . 1 5 . . 2 . . . 2 Combat Hostiles 6 | . . . . . . . . . . . . . 4 . . . . . . . . . 2 . . . . Follow-up Attacks 19 | . . . . . . . . . . 7 . . . . . . . . . 12 . . . . . . . Damage Inflicted 15415 | 190 200 . . . 392 2625 3511 1942 1649 844 . . 531 . 65 278 65 370 152 943 . . 393 205 280 139 641 Guns 1787 | 190 200 . . . 290 736 371 . . . . . . . . . . . . . . . . . . . . Cannons 7351 | . . . . . . 1771 2106 1942 904 428 . . . . . . . . . . . . . . . . 200 Explosions 978 | . . . . . . 55 698 . 225 . . . . . . . . . . . . . . . . . . Melee 5285 | . . . . . 102 63 336 . 520 402 . . 531 . 65 278 65 370 152 943 . . 393 205 280 139 441 Ramming 14 | . . . . . . . . . . 14 . . . . . . . . . . . . . . . . . Kinetic 8912 | 164 200 . . . 290 2507 2477 1942 904 428 . . . . . . . . . . . . . . . . . Thermal 226 | 26 . . . . . . . . . . . . . . . . . . . . . . . . . . 200 Explosive 871 | . . . . . . 55 591 . 225 . . . . . . . . . . . . . . . . . . Electromagnetic 107 | . . . . . . . 107 . . . . . . . . . . . . . . . . . . . . Impact . | . . . . . . . . . . . . . . . . . . . . . . . . . . . . Slashing 4806 | . . . . . 102 63 336 . 520 402 . . 531 . 65 278 65 370 152 464 . . 393 205 280 139 441 Piercing 479 | . . . . . . . . . . . . . . . . . . . . 479 . . . . . . . Highest Corruption 11 | . 1 1 1 1 . . 8 11 . 6 . . . . . . . . . 5 5 5 5 . . . . Average Corruption 5 | . 1 1 1 1 . . 6 10 . 6 . . . . . . . . . 4 5 5 4 . . . . Corruption Purged . | . . . . . . . . . . . . . . . . . . . . . . . . . . . . Corruption Blocked . | . . . . . . . . . . . . . . . . . . . . . . . . . . . . Effects 49 | . 3 . 1 . . . 4 18 . 2 . . . . . . . . . 1 4 2 14 . . . . Message Errors 16 | . . . . . . . 1 5 . 2 . . . . . . . . . . 2 . 6 . . . . Matter Fused 9 | . . . . . . . 2 4 . . . . . . . . . . . . 1 . 2 . . . . Heat Flow Errors 10 | . 1 . . . . . . 5 . . . . . . . . . . . 1 . 1 2 . . . . Energy Discharges 3 | . . . . . . . . 1 . . . . . . . . . . . . . . 2 . . . . Parts Fused 1 | . . . . . . . 1 . . . . . . . . . . . . . . . . . . . . Data Loss (minor) 3 | . 1 . . . . . . . . . . . . . . . . . . . . 1 1 . . . . Data Loss (major) 5 | . 1 . 1 . . . . 1 . . . . . . . . . . . . 1 . 1 . . . . Alerts 2 | . . . . . . . . 2 . . . . . . . . . . . . . . . . . . . Overload Shots . | . . . . . . . . . . . . . . . . . . . . . . . . . . . . Overflow Damage 2198 | . . . . . . 120 230 519 216 93 . . . . . . . 237 123 134 . . 251 115 46 . 114 Projectiles 972 | . . . . . . 120 145 519 144 44 . . . . . . . . . . . . . . . . . Explosions 17 | . . . . . . . 3 . 14 . . . . . . . . . . . . . . . . . . Melee 1209 | . . . . . . . 82 . 58 49 . . . . . . . 237 123 134 . . 251 115 46 . 114 Knockbacks 27 | . . . . . . 2 5 14 3 3 . . . . . . . . . . . . . . . . . Impact . | . . . . . . . . . . . . . . . . . . . . . . . . . . . . Kinetic 22 | . . . . . . 2 5 10 3 2 . . . . . . . . . . . . . . . . . Secondary 5 | . . . . . . . . 4 . 1 . . . . . . . . . . . . . . . . . Self-Inflicted Damage 186 | . . . . . . 26 160 . . . . . . . . . . . . . . . . . . . . Shots 5 | . . . . . . 1 4 . . . . . . . . . . . . . . . . . . . . Rammed 5 | . . . . . . . . . . 5 . . . . . . . . . . . . . . . . . Targets Rammed 5 | . . . . . . . . . . 5 . . . . . . . . . . . . . . . . . Kicked . | . . . . . . . . . . . . . . . . . . . . . . . . . . . . Crushed . | . . . . . . . . . . . . . . . . . . . . . . . . . . . . Highest Temperature 334 | . 162 . . . 21 151 108 274 . . . . . 23 . . 59 106 133 294 . 213 230 . . 3 334 Average Temperature 66 | . 37 . . . 5 67 40 121 . . . . . 14 . . 18 38 56 111 . 193 54 . . 3 59 Received Heat Transfer 1097 | . . . . . 180 272 216 96 72 . . . . 84 . 39 . . 24 12 . . 69 . 15 18 . Effects 2 | . . . . . . . . . . . . . . . . . . . . 2 . . . . . . . Interference 2 | . . . . . . . . . . . . . . . . . . . . 2 . . . . . . . Siege Activations . | . . . . . . . . . . . . . . . . . . . . . . . . . . . . Martial Activations . | . . . . . . . . . . . . . . . . . . . . . . . . . . . . Shielding Activations . | . . . . . . . . . . . . . . . . . . . . . . . . . . . . Robots Disrupted . | . . . . . . . . . . . . . . . . . . . . . . . . . . . . Combat Hostiles . | . . . . . . . . . . . . . . . . . . . . . . . . . . . . Robots Corrupted 1 | . . . . . . . . 1 . . . . . . . . . . . . . . . . . . . Combat Hostiles 1 | . . . . . . . . 1 . . . . . . . . . . . . . . . . . . . Parts Fried 2 | . . . . . . . . 2 . . . . . . . . . . . . . . . . . . . Impact Corruptions 3 | . . . . . . . . 3 . . . . . . . . . . . . . . . . . . . Robots Melted . | . . . . . . . . . . . . . . . . . . . . . . . . . . . . Combat Hostiles . | . . . . . . . . . . . . . . . . . . . . . . . . . . . . Parts Melted . | . . . . . . . . . . . . . . . . . . . . . . . . . . . . Heat Transferred 74 | 74 . . . . . . . . . . . . . . . . . . . . . . . . . . . Parts Sabotaged . | . . . . . . . . . . . . . . . . . . . . . . . . . . . . Parts Stolen . | . . . . . . . . . . . . . . . . . . . . . . . . . . . . Parts Stripped . | . . . . . . . . . . . . . . . . . . . . . . . . . . . . Power Chain Reactions 1 | . . . . . . . 1 . . . . . . . . . . . . . . . . . . . . Alert | -11 -10 -10 -10 -9 -8 -8 -8 -8 -7 -7 -6 -6 -5 -5 -4 -4 -4 -4 -3 -3 -3 -3 -3 -2 -2 -2 -1 ------- Run | Yrd Mat Min Exi Min Mat Gar Mat Gar Fac Gar Fac DSF Fac Gar Fac Upp Upp Zhi Pro Res Gar Res Qua Res Gar Res Acc Maximum Alert Level 5 | . . . . . . 3 3 3 2 1 . . . . . . . . . . . . 5 4 4 3 2 Low Security (%) 36 | 100 100 100 . 100 100 7 . . 59 46 100 100 100 100 100 . . . . 100 100 100 . . . . . Level 1 10 | . . . . . . 21 . . 27 53 . . . . . . . . . . . . . . . . 36 Level 2 19 | . . . . . . 40 52 36 13 . . . . . . . . . . . . . . . . 87 63 Level 3 13 | . . . . . . 30 47 63 . . . . . . . . . . . . . . . . 24 12 . Level 4 2 | . . . . . . . . . . . . . . . . . . . . . . . . 100 75 . . Level 5 . | . . . . . . . . . . . . . . . . . . . . . . . . . . . . High Security . | . . . . . . . . . . . . . . . . . . . . . . . . . . . . Max Security 16 | . . . . . . . . . . . . . . . . . . . . . . . 99 . . . . Peak Influence 2353 | 5 140 80 . . 157 1019 853 890 466 308 166 102 86 93 115 . . . . 64 98 51 2353 1362 1197 720 464 Initial 1323 | . . . . . . 96 496 497 466 76 140 102 50 46 56 . . . . 13 48 51 18 1323 1014 672 440 Average 625 | 1 46 42 . . 26 561 670 730 200 208 152 92 21 60 58 . . . . 16 74 45 1877 1342 1108 663 412 Influence Increases 6139 | 10 250 90 . . 404 1023 915 403 479 272 36 15 205 72 89 44 72 10 50 199 54 2 833 89 193 182 148 Destroy 0b10 Robot/C 2160 | . 80 . . . 120 540 480 240 120 160 . . 100 . . 40 40 . . 60 . . 100 . 60 20 . Destroy 0b10 Robot/NC 155 | 10 10 . . . 5 5 55 . 20 . . . . . 5 . . 10 5 10 . . . 5 . . 15 Destroy Leader 314 | . 22 . . . 30 30 110 20 52 20 . . 10 . . . . . . 14 . . . . . . 6 Allied During Kill 93 | . . . . . . 26 33 . . 11 . . 13 . . 4 2 . . . . . 4 . . . . Successful Hack 421 | . 15 . . . 38 39 23 10 68 . 36 . 65 6 5 . . . . 21 . . . 66 . . 29 Select Force Hacks 20 | . . . . . . . . . 20 . . . . . . . . . . . . . . . . . . Disable Machine 315 | . . . . . . . 60 . . . . . 15 . . . . . . 15 . . 180 15 . . 30 Anti-Garrison Action 800 | . . . . . . 350 . 100 . 50 . . . . . . . . . . 50 . 150 . 100 . . Destroy Structure 421 | . 3 . . . 16 33 64 33 34 16 . . 2 6 4 . . . . 34 4 2 24 3 18 57 68 Partial Spotted 225 | . 30 . . . 60 . . . 75 . . . . . . . . . . 15 . . 15 . . 30 . Lose Combat Pursuer 1215 | . 90 90 . . 135 . 90 . 90 15 . 15 . 60 75 . 30 . 45 30 . . 360 . 15 75 . Influence Decreases 7303 | 10 250 30 60 . 255 153 1169 278 1260 113 158 64 236 30 82 125 99 17 30 155 26 61 95 1090 348 645 464 Entered New Map 3975 | . . . 60 . . 53 523 268 424 33 128 44 47 20 52 43 7 7 . 7 16 41 15 1030 338 525 294 Time Decay 2131 | 10 230 30 . . 123 . 386 . 486 . 30 . 139 . 30 72 77 10 30 108 . 20 . 60 . 120 170 Lost Part 420 | . 20 . . . 10 100 70 10 30 60 . 20 10 10 . 10 . . . 40 10 . 10 . 10 . . Lost Ally 217 | . . . . . 12 . 40 . 20 20 . . 40 . . . 15 . . . . . 70 . . . . Purge Threat 560 | . . . . . 110 . 150 . 300 . . . . . . . . . . . . . . . . . . Squads Dispatched 118 | . 2 1 . . 3 . 4 . 11 . . 1 4 . 1 . . . . 6 . 1 75 1 . 6 2 Investigation 18 | . 1 1 . . 1 . 1 . 6 . . . 4 . . . . . . 2 . 1 . . . 1 . Extermination 10 | . . . . . . . . . 4 . . . . . . . . . . 1 . . . 1 . 2 2 Reinforcement 14 | . 1 . . . 2 . 2 . 1 . . 1 . . 1 . . . . 2 . . 1 . . 3 . Assault 75 | . . . . . . . 1 . . . . . . . . . . . . . . . 74 . . . . Garrison 1 | . . . . . . . . . . . . . . . . . . . . 1 . . . . . . . Intercept . | . . . . . . . . . . . . . . . . . . . . . . . . . . . . Searches Triggered . | . . . . . . . . . . . . . . . . . . . . . . . . . . . . Construction Impeded 1 | . . . . . . . . . . . . . . . . . . . . 1 . . . . . . . Haulers Reinforced . | . . . . . . . . . . . . . . . . . . . . . . . . . . . . Active Scanning Responses . | . . . . . . . . . . . . . . . . . . . . . . . . . . . . Cargo Convoy Interrupts 1 | . . . . . . . . . 1 . . . . . . . . . . . . . . . . . . Stealth | -11 -10 -10 -10 -9 -8 -8 -8 -8 -7 -7 -6 -6 -5 -5 -4 -4 -4 -4 -3 -3 -3 -3 -3 -2 -2 -2 -1 --------- Run | Yrd Mat Min Exi Min Mat Gar Mat Gar Fac Gar Fac DSF Fac Gar Fac Upp Upp Zhi Pro Res Gar Res Qua Res Gar Res Acc Distress Signals 7 | . . . . . 5 . . . . . . . . . . . . . . . . . . . . 1 1 Communications Jammed . | . . . . . . . . . . . . . . . . . . . . . . . . . . . . Distress Signals . | . . . . . . . . . . . . . . . . . . . . . . . . . . . . Times Spotted 295 | . 10 9 . . 35 25 38 12 22 16 . 5 5 9 10 4 6 . 4 9 5 1 47 5 6 8 4 Peak Tracking Total 42 | . 4 3 . . 15 5 7 4 5 8 . 4 2 7 5 3 5 . 3 6 5 1 42 4 4 5 3 Tactical Retreats 30 | . 2 2 . . 5 . 3 . 3 1 . 1 . 2 1 . 1 . 1 1 . . 3 . 1 3 . Traps | -11 -10 -10 -10 -9 -8 -8 -8 -8 -7 -7 -6 -6 -5 -5 -4 -4 -4 -4 -3 -3 -3 -3 -3 -2 -2 -2 -1 ------- Run | Yrd Mat Min Exi Min Mat Gar Mat Gar Fac Gar Fac DSF Fac Gar Fac Upp Upp Zhi Pro Res Gar Res Qua Res Gar Res Acc Traps Triggered 35 | . 4 . . . . 11 2 3 2 1 . . 1 4 . . . . . . . . 1 . 4 1 1 Indirectly . | . . . . . . . . . . . . . . . . . . . . . . . . . . . . Trap Hack Attempts . | . . . . . . . . . . . . . . . . . . . . . . . . . . . . Triggered . | . . . . . . . . . . . . . . . . . . . . . . . . . . . . Disarmed . | . . . . . . . . . . . . . . . . . . . . . . . . . . . . Reprogrammed . | . . . . . . . . . . . . . . . . . . . . . . . . . . . . Reused . | . . . . . . . . . . . . . . . . . . . . . . . . . . . . Traps Extracted . | . . . . . . . . . . . . . . . . . . . . . . . . . . . . Installed . | . . . . . . . . . . . . . . . . . . . . . . . . . . . . Triggered . | . . . . . . . . . . . . . . . . . . . . . . . . . . . . Most Traps Carried 1 | . . . . . . . . . . . . . . . . 1 1 1 1 . . . . . . . . Machines | -11 -10 -10 -10 -9 -8 -8 -8 -8 -7 -7 -6 -6 -5 -5 -4 -4 -4 -4 -3 -3 -3 -3 -3 -2 -2 -2 -1 ---------- Run | Yrd Mat Min Exi Min Mat Gar Mat Gar Fac Gar Fac DSF Fac Gar Fac Upp Upp Zhi Pro Res Gar Res Qua Res Gar Res Acc Machines Disabled 33 | . . . . . . 5 4 2 . 1 . . 1 . . . . . . 1 1 . 13 1 2 . 2 Max in Single Turn 3 | . . . . . . 1 3 1 . 1 . . . . . . . . . 1 1 . 1 1 1 . 1 Garrison Access 4 | . . . . . . . . . 1 . 1 . . . 1 . . . . . . . 1 . . . . Garrison Relay 9 | . . . . . . 4 . 1 . 1 . . . . . . . . . . 1 . . . 2 . . Machines Repaired . | . . . . . . . . . . . . . . . . . . . . . . . . . . . . Machines Dismantled . | . . . . . . . . . . . . . . . . . . . . . . . . . . . . Machines Sabotaged . | . . . . . . . . . . . . . . . . . . . . . . . . . . . . Overloaded Fab Kills . | . . . . . . . . . . . . . . . . . . . . . . . . . . . . Hacking | -11 -10 -10 -10 -9 -8 -8 -8 -8 -7 -7 -6 -6 -5 -5 -4 -4 -4 -4 -3 -3 -3 -3 -3 -2 -2 -2 -1 --------- Run | Yrd Mat Min Exi Min Mat Gar Mat Gar Fac Gar Fac DSF Fac Gar Fac Upp Upp Zhi Pro Res Gar Res Qua Res Gar Res Acc Machines Accessed 100 | . 9 1 2 . 10 4 11 2 21 . 4 . 7 1 2 . . 4 . 7 . 1 . 7 1 4 2 Terminals 59 | . 7 . . . 7 4 7 2 11 . 3 . 2 1 1 . . . . 3 . . . 6 1 3 1 Fabricators 6 | . . . . . . . . . 3 . . . 2 . . . . . . 1 . . . . . . . Repair Stations 12 | . 1 . . . 1 . 2 . 2 . . . 2 . . . . . . 1 . 1 . . . 1 1 Recycling Units 3 | . 1 . . . 1 . . . 1 . . . . . . . . . . . . . . . . . . Scanalyzers 4 | . . . . . . . 1 . 2 . . . . . . . . . . 1 . . . . . . . Garrison Access 9 | . . . . . 1 . 1 . 2 . 1 . 1 . 1 . . . . 1 . . . 1 . . . Total Hacks 344 | . 28 1 2 . 52 8 41 6 70 . 12 . 27 2 10 . . 17 . 17 . 3 . 27 3 10 8 Successful 203 | . 13 1 2 . 35 5 30 1 49 . 4 . 15 1 6 . . 17 . 6 . 1 . 9 1 3 4 Failed 140 | . 15 . . . 16 3 11 5 21 . 8 . 12 1 4 . . . . 11 . 2 . 18 2 7 4 Catastrophic 24 | . 3 . . . . 1 1 2 1 . 2 . 1 . 1 . . . . 2 . . . 5 . 3 2 Database Lockouts 1 | . . . . . 1 . . . . . . . . . . . . . . . . . . . . . . Manual 213 | . 25 . 1 . 41 2 25 5 46 . 6 . 12 . 6 . . . . 6 . 1 . 23 1 10 3 Terminals 232 | . 23 . . . 46 8 29 6 41 . 11 . 11 2 9 . . . . 5 . . . 26 3 9 3 Fabricators 20 | . . . . . . . . . 10 . . . 7 . . . . . . 3 . . . . . . . Repair Stations 38 | . 2 . . . 1 . 8 . 8 . . . 7 . . . . . . 3 . 3 . . . 1 5 Recycling Units 11 | . 3 . . . 4 . . . 4 . . . . . . . . . . . . . . . . . . Scanalyzers 11 | . . . . . . . 3 . 4 . . . . . . . . . . 4 . . . . . . . Garrison Access 12 | . . . . . 1 . 1 . 3 . 1 . 2 . 1 . . . . 2 . . . 1 . . . Terminal Hacks 65 | . 1 1 2 . 13 5 8 1 10 . 1 . 2 1 2 . . 17 . . . . . . 1 . . Record 6 | . . . 1 . . . . . . . . . . . . . . 5 . . . . . . . . . Part Schematic 6 | . . . . . . . . . 2 . . . . . . . . 4 . . . . . . . . . Robot Analysis 10 | . . . . . 1 . 3 . 1 . . . 1 . . . . 4 . . . . . . . . . Prototype ID Bank 6 | . . . . . 1 . 1 . . . . . . . . . . 4 . . . . . . . . . Open Door 3 | . . 1 . . . 1 . . . . . . . 1 . . . . . . . . . . . . . Open DSF 1 | . . . . . . . . . . . 1 . . . . . . . . . . . . . . . . Branch Access Points 1 | . . . . . . . 1 . . . . . . . . . . . . . . . . . . . . Emergency Access Points 3 | . . . . . . 1 . 1 . . . . . . . . . . . . . . . . 1 . . Machine Index 1 | . . . . . . . . . 1 . . . . . . . . . . . . . . . . . . Terminal Index 5 | . 1 . . . 1 . 1 . 1 . . . . . 1 . . . . . . . . . . . . Garrison Index 3 | . . . . . 1 . 1 . 1 . . . . . . . . . . . . . . . . . . Unreport Threat 6 | . . . . . 3 . 1 . 2 . . . . . . . . . . . . . . . . . . Locate Traps 1 | . . . . . 1 . . . . . . . . . . . . . . . . . . . . . . Registered Components 2 | . . . . . 1 . . . . . . . . . 1 . . . . . . . . . . . . Registered Prototypes 1 | . . . . . . . . . 1 . . . . . . . . . . . . . . . . . . Zone Layout 6 | . . . . . 4 . . . 1 . . . 1 . . . . . . . . . . . . . . Garrison Registry 1 | . . . . . . 1 . . . . . . . . . . . . . . . . . . . . . Patrol Navigation 1 | . . . . . . 1 . . . . . . . . . . . . . . . . . . . . . Security Stations 1 | . . . . . . 1 . . . . . . . . . . . . . . . . . . . . . Proto ID Catalog 1 | . . . 1 . . . . . . . . . . . . . . . . . . . . . . . . Fabricator Hacks 10 | . . . . . . . . . 5 . . . 4 . . . . . . 1 . . . . . . . Load Schematic 6 | . . . . . . . . . 3 . . . 2 . . . . . . 1 . . . . . . . Build 4 | . . . . . . . . . 2 . . . 2 . . . . . . . . . . . . . . Repair Station Hacks 22 | . 2 . . . . . 6 . 6 . . . 4 . . . . . . 1 . . . . . . 3 Scan Component 12 | . 1 . . . . . 3 . 3 . . . 2 . . . . . . 1 . . . . . . 2 Repair 10 | . 1 . . . . . 3 . 3 . . . 2 . . . . . . . . . . . . . 1 Recycling Unit Hacks 2 | . 1 . . . 1 . . . . . . . . . . . . . . . . . . . . . . Retrieve Components 2 | . 1 . . . 1 . . . . . . . . . . . . . . . . . . . . . . Scanalyzer 9 | . . . . . . . 3 . 4 . . . . . . . . . . 2 . . . . . . . Insert Component 4 | . . . . . . . 1 . 2 . . . . . . . . . . 1 . . . . . . . Analyze 5 | . . . . . . . 2 . 2 . . . . . . . . . . 1 . . . . . . . Garrison Access Hacks 9 | . . . . . 1 . 1 . 2 . 1 . 1 . 1 . . . . 1 . . . 1 . . . Unlock Access 6 | . . . . . 1 . 1 . 1 . . . 1 . . . . . . 1 . . . 1 . . . Seal Access 3 | . . . . . . . . . 1 . 1 . . . 1 . . . . . . . . . . . . Unauthorized Hacks 86 | . 9 . . . 20 . 12 . 22 . 2 . 4 . 3 . . . . 1 . 1 . 8 . 3 1 Terminals 70 | . 9 . . . 17 . 11 . 12 . 2 . 4 . 3 . . . . 1 . . . 8 . 2 1 Track 2 | . . . . . 2 . . . . . . . . . . . . . . . . . . . . . . Assimilate 6 | . 1 . . . 2 . 1 . 2 . . . . . . . . . . . . . . . . . . Botnet 23 | . 3 . . . 4 . 2 . 4 . 1 . 2 . 1 . . . . 1 . . . 3 . 1 1 Disrupt 6 | . . . . . 4 . 2 . . . . . . . . . . . . . . . . . . . . Operators 1 | . . . . . . . . . . . . . . . 1 . . . . . . . . . . . . Skim 31 | . 5 . . . 5 . 6 . 5 . 1 . 2 . 1 . . . . . . . . 5 . 1 . Search 1 | . . . . . . . . . 1 . . . . . . . . . . . . . . . . . . Fabricators 3 | . . . . . . . . . 3 . . . . . . . . . . . . . . . . . . Prioritize 1 | . . . . . . . . . 1 . . . . . . . . . . . . . . . . . . Download 1 | . . . . . . . . . 1 . . . . . . . . . . . . . . . . . . Recompile 1 | . . . . . . . . . 1 . . . . . . . . . . . . . . . . . . Repair Stations 6 | . . . . . 1 . 1 . 2 . . . . . . . . . . . . 1 . . . 1 . Mechanics 2 | . . . . . . . 1 . 1 . . . . . . . . . . . . . . . . . . Patch 4 | . . . . . 1 . . . 1 . . . . . . . . . . . . 1 . . . 1 . Recycling Units 6 | . . . . . 2 . . . 4 . . . . . . . . . . . . . . . . . . Monitor 1 | . . . . . . . . . 1 . . . . . . . . . . . . . . . . . . Reject 2 | . . . . . 1 . . . 1 . . . . . . . . . . . . . . . . . . Recyclers 1 | . . . . . . . . . 1 . . . . . . . . . . . . . . . . . . Mask 2 | . . . . . 1 . . . 1 . . . . . . . . . . . . . . . . . . Scanalyzers . | . . . . . . . . . . . . . . . . . . . . . . . . . . . . Garrison Access 1 | . . . . . . . . . 1 . . . . . . . . . . . . . . . . . . Reprogram 1 | . . . . . . . . . 1 . . . . . . . . . . . . . . . . . . Data Cores Recovered 2 | . . . . . . . 2 . . . . . . . . . . . . . . . . . . . . Used 1 | . . . . . . . 1 . . . . . . . . . . . . . . . . . . . . Hacking Detections 80 | . 9 . . . 7 3 10 2 18 . 3 . 7 . 1 . . . . 7 . 1 . 6 1 3 2 Full Trace Events 10 | . 1 . . . . 1 . 1 1 . . . 4 . . . . . . 2 . . . . . . . Feedback Events 2 | . . . . . . . . 1 . . . . 1 . . . . . . . . . . . . . . Corruption 1 | . . . . . . . . 1 . . . . . . . . . . . . . . . . . . . Hackware Fried 1 | . . . . . . . . . . . . . 1 . . . . . . . . . . . . . . Feedback Blocked . | . . . . . . . . . . . . . . . . . . . . . . . . . . . . Robot Schematics Acquired . | . . . . . . . . . . . . . . . . . . . . . . . . . . . . Robots Built 3 | . . . . . . . . . . . . . 3 . . . . . . . . . . . . . . Authchips . | . . . . . . . . . . . . . . . . . . . . . . . . . . . . Time 56 | . . . . . . . . . . . . . 56 . . . . . . . . . . . . . . Total Robot Build Rating 18 | . . . . . . . . . . . . . 18 . . . . . . . . . . . . . . Part Schematics Acquired 16 | . . . . . . . 1 . 5 . . . . . . . . 4 . 1 . . 5 . . . . Parts Built 4 | . . . . . . . . . 2 . . . 2 . . . . . . . . . . . . . . Authchips 1 | . . . . . . . . . 1 . . . . . . . . . . . . . . . . . . Time 100 | . . . . . . . . . 58 . . . 42 . . . . . . . . . . . . . . Total Part Build Rating 22 | . . . . . . . . . 14 . . . 8 . . . . . . . . . . . . . . Parts Repaired 10 | . 1 . . . . . 3 . 3 . . . 2 . . . . . . . . . . . . . 1 Time 390 | . 26 . . . . . 90 . 165 . . . 47 . . . . . . . . . . . . . 62 Parts Recycled . | . . . . . . . . . . . . . . . . . . . . . . . . . . . . Recycled Matter . | . . . . . . . . . . . . . . . . . . . . . . . . . . . . Retrieved Matter . | . . . . . . . . . . . . . . . . . . . . . . . . . . . . Retrieved Components . | . . . . . . . . . . . . . . . . . . . . . . . . . . . . Parts Scanalyzed 4 | . . . . . . . 1 . 2 . . . . . . . . . . 1 . . . . . . . Part Schematics Acquired 4 | . . . . . . . 1 . 2 . . . . . . . . . . 1 . . . . . . . Parts Damaged . | . . . . . . . . . . . . . . . . . . . . . . . . . . . . Bothacking | -11 -10 -10 -10 -9 -8 -8 -8 -8 -7 -7 -6 -6 -5 -5 -4 -4 -4 -4 -3 -3 -3 -3 -3 -2 -2 -2 -1 ------------ Run | Yrd Mat Min Exi Min Mat Gar Mat Gar Fac Gar Fac DSF Fac Gar Fac Upp Upp Zhi Pro Res Gar Res Qua Res Gar Res Acc Used RIF Installer 6 | . . . . . . 2 . 1 . 1 . . . 1 . . . . . . 1 . . . . . . Coupler Efficiency 1 | . . . . . . . . . . . . . . . . . . . . . 1 . . . . . . Hotswap 1 | . . . . . . . . . . 1 . . . . . . . . . . . . . . . . . Command Fork 1 | . . . . . . . . . . . . . . 1 . . . . . . . . . . . . . Watcher Feeds 1 | . . . . . . . . 1 . . . . . . . . . . . . . . . . . . . Patrol Navigation 1 | . . . . . . 1 . . . . . . . . . . . . . . . . . . . . . Robots Hacked 16 | . . . . . . . . . . . . . 3 1 . 2 3 . 1 . 2 1 3 . . . . Non-combat 2 | . . . . . . . . . . . . . . . . . . . 1 . . 1 . . . . . Combat 14 | . . . . . . . . . . . . . 3 1 . 2 3 . . . 2 . 3 . . . . Robot Hacks Applied 16 | . . . . . . . . . . . . . 3 1 . 2 3 . 1 . 2 1 3 . . . . scatter_targeting 1 | . . . . . . . . . . . . . . . . . 1 . . . . . . . . . . overload_power 1 | . . . . . . . . . . . . . . 1 . . . . . . . . . . . . . amplify_resonance 4 | . . . . . . . . . . . . . . . . . 1 . 1 . 2 . . . . . . reboot_system 2 | . . . . . . . . . . . . . 1 . . . . . . . . . 1 . . . . overwrite_iff 1 | . . . . . . . . . . . . . 1 . . . . . . . . . . . . . . formatsys_high 7 | . . . . . . . . . . . . . 1 . . 2 1 . . . . 1 2 . . . . Relay Couplers Released 39 | . . . . . . 17 . 3 3 3 . . . . . . . . . . 4 . . . 9 . . Machine Destruction 36 | . . . . . . 17 . 3 . 3 . . . . . . . . . . 4 . . . 9 . . Programmers 3 | . . . . . . . . . 3 . . . . . . . . . . . . . . . . . . Attached 7 | . . . . . . . . . 1 . 1 . . . . 1 . 1 . . 1 1 1 . . . . Fabnet Peak Effective % . | . . . . . . . . . . . . . . . . . . . . . . . . . . . . Robots Rewired 6 | . . . . . . 2 . . . . . . . . . . 1 . . . 3 . . . . . . Allies Hacked . | . . . . . . . . . . . . . . . . . . . . . . . . . . . . Hacks Repelled . | . . . . . . . . . . . . . . . . . . . . . . . . . . . . Allies | -11 -10 -10 -10 -9 -8 -8 -8 -8 -7 -7 -6 -6 -5 -5 -4 -4 -4 -4 -3 -3 -3 -3 -3 -2 -2 -2 -1 -------- Run | Yrd Mat Min Exi Min Mat Gar Mat Gar Fac Gar Fac DSF Fac Gar Fac Upp Upp Zhi Pro Res Gar Res Qua Res Gar Res Acc Total Allies 24 | . 1 . . . 2 2 . . 4 . . . 5 . . 2 2 . . . 3 1 2 . . . . Largest Group 4 | . 1 . . . 1 2 2 . 2 2 . . 3 . . 2 1 . . . 2 4 4 . . . . Highest-Rated Group 136 | . 10 . . . 10 59 59 . 32 32 . . 90 . . 97 49 . . . 60 116 136 . . . . Highest-Rated Ally 68 | . 10 . . . 10 39 39 . 26 16 . . 30 . . 49 49 . . . 30 30 68 . . . . Initial Warlord ECA Mod 9 | . . . . . . . . . . . . . . . . . . . . . . . . . . 5 4 Total Orders 1 | . . . . . . . . . . . . . . . . . . . . . . . 1 . . . . STAY 1 | . . . . . . . . . . . . . . . . . . . . . . . 1 . . . . Ally Attacks 114 | . . . . . . 14 27 . . 18 . . 12 . . 10 5 . . . . 2 26 . . . . Total Damage 2014 | . . . . . . 72 387 . . 165 . . 329 . . 397 171 . . . . 22 471 . . . . Kills 16 | . . . . . . 1 5 . . 2 . . 2 . . 1 1 . . . . . 4 . . . . Allies Corrupted 1 | . . . . . . . . . . 1 . . . . . . . . . . . . . . . . . Allies Melted . | . . . . . . . . . . . . . . . . . . . . . . . . . . . . Intel | -11 -10 -10 -10 -9 -8 -8 -8 -8 -7 -7 -6 -6 -5 -5 -4 -4 -4 -4 -3 -3 -3 -3 -3 -2 -2 -2 -1 ------- Run | Yrd Mat Min Exi Min Mat Gar Mat Gar Fac Gar Fac DSF Fac Gar Fac Upp Upp Zhi Pro Res Gar Res Qua Res Gar Res Acc Active Infowar (turns) 3726 | 32 239 . . . . . . . . . . . . . 37 182 266 62 91 315 . 18 1560 127 189 259 349 Sensors 2 | . . . . . . . . . . . . . . . . . . . . . . . . . . . 2 IFF 2 | . . . . . . . . . . . . . . . . . . . . 2 . . . . . . . Structural 3264 | . . . . . . . . . . . . . . . 37 182 266 62 91 313 . 18 1560 127 3 256 349 Seismic 271 | 32 239 . . . . . . . . . . . . . . . . . . . . . . . . . . Machine Analysis 145 | . . . . . . . . . . . . . . . . . . . . . . . . . . . 145 Cloaking 877 | . . . . . . . . . . . . . . . . . . . . . . . 10 70 189 259 349 ECM 1 | . . . . . . . . . . . . . . . . . . . . . . . . . . . 1 Robot Analysis Total 10 | . . . . . 1 . 3 . 1 . . . 1 . . . . 4 . . . . . . . . . Derelict Logs Recovered 4 | . . 1 . . . . . . . . . . . . . 2 1 . . . . . . . . . . Drone Launches . | . . . . . . . . . . . . . . . . . . . . . . . . . . . . Drone Recoveries . | . . . . . . . . . . . . . . . . . . . . . . . . . . . . Exploration | -11 -10 -10 -10 -9 -8 -8 -8 -8 -7 -7 -6 -6 -5 -5 -4 -4 -4 -4 -3 -3 -3 -3 -3 -2 -2 -2 -1 ------------- Run | Yrd Mat Min Exi Min Mat Gar Mat Gar Fac Gar Fac DSF Fac Gar Fac Upp Upp Zhi Pro Res Gar Res Qua Res Gar Res Acc Turns Passed 10223 | 65 622 98 87 10 422 1501 903 538 1277 370 66 45 340 134 75 182 266 62 91 374 133 40 1598 127 189 259 349 Spaces Moved 14049 | 40 662 248 215 26 724 881 654 357 2129 161 120 82 399 247 228 333 356 166 267 729 216 79 2794 366 245 689 636 Core 62 | 40 22 . . . . . . . . . . . . . . . . . . . . . . . . . . Treads 583 | . . . . . . 119 70 192 41 161 . . . . . . . . . . . . . . . . . Legs . | . . . . . . . . . . . . . . . . . . . . . . . . . . . . Wheels 797 | . . . . . . 550 247 . . . . . . . . . . . . . . . . . . . . Hover 135 | . . . . . . . . . 135 . . . . . . . . . . . . . . . . . . Flight 12472 | . 640 248 215 26 724 212 337 165 1953 . 120 82 399 247 228 333 356 166 267 729 216 79 2794 366 245 689 636 Fastest Speed 8 | 50 37 37 37 37 29 29 34 34 28 180 32 32 26 21 26 26 21 20 20 19 19 22 22 20 20 20 8 Average Speed 41 | 58 37 37 37 37 30 130 80 125 36 180 33 32 29 26 26 27 24 20 20 19 20 22 26 22 20 20 18 Slowest Speed 305 | 100 50 37 37 37 32 240 305 230 305 180 37 37 100 34 28 28 28 21 21 95 22 22 169 24 20 25 21 Overloaded Moves 17 | . . . . . . . . . . . . . . 4 . . . . . . . . . . . . 13 Propulsion Burnouts . | . . . . . . . . . . . . . . . . . . . . . . . . . . . . Robots Hopped 78 | . 9 7 . 1 14 . 9 . 17 . . 1 5 2 1 . 1 . . 4 . . 2 1 . 2 2 Potential Cave-ins 2 | . . . . . 2 . . . . . . . . . . . . . . . . . . . . . . Cave-ins Triggered . | . . . . . . . . . . . . . . . . . . . . . . . . . . . . Exploration Rate (%) 42 | 3 93 42 61 10 75 87 74 54 55 36 3 87 13 44 8 54 45 60 42 31 26 4 99 12 33 25 21 Regions Visited 27 Branch Regions 8 Pre-discovered Areas 12 | . 1 . 1 . 1 . 3 . 1 . . . . . . 1 1 3 . . . . . . . . . Known Exits Taken 11 | . 1 . 1 . 1 . 1 . 1 . 1 . 1 . . . . . . 1 . . 1 1 . 1 . Unknown Exits Taken 9 | 1 . 1 . 1 . . . . . . . . . . 1 1 1 1 1 . . 1 . . . . . Scrap Searched 6 | . . . . . . . . . . . . . . . . 2 1 . 3 . . . . . . . . Spaces Dug 135 | . 3 . . . 17 1 6 1 25 . . . 1 3 2 3 5 . 1 17 3 1 12 1 1 19 13 Terrain Destroyed 221 | . 3 . . . 17 13 54 8 35 1 . . 1 3 2 3 5 . 1 17 3 1 12 1 1 19 21 Melee 132 | . . . . . 17 1 6 1 25 . . . 1 3 2 3 5 . 1 17 3 1 12 1 1 19 13 Projectile 30 | . 3 . . . . 3 8 7 . 1 . . . . . . . . . . . . . . . . 8 AOE 59 | . . . . . . 9 40 . 10 . . . . . . . . . . . . . . . . . . Terrain Rammed . | . . . . . . . . . . . . . . . . . . . . . . . . . . . . Walls Destroyed . | . . . . . . . . . . . . . . . . . . . . . . . . . . . . Machines Disabled . | . . . . . . . . . . . . . . . . . . . . . . . . . . . . Actions | -11 -10 -10 -10 -9 -8 -8 -8 -8 -7 -7 -6 -6 -5 -5 -4 -4 -4 -4 -3 -3 -3 -3 -3 -2 -2 -2 -1 --------- Run | Yrd Mat Min Exi Min Mat Gar Mat Gar Fac Gar Fac DSF Fac Gar Fac Upp Upp Zhi Pro Res Gar Res Qua Res Gar Res Acc Total 17744 | 61 988 248 223 24 858 1143 920 441 2544 214 145 97 589 306 234 403 520 189 298 915 301 98 3638 398 359 759 831 Wait 2305 | . 280 . . . 100 38 184 60 268 3 19 12 170 18 . 51 146 3 18 117 36 10 592 5 34 18 123 Move 13874 | 39 644 234 214 23 698 880 636 356 2095 160 119 79 388 243 225 332 353 165 266 720 215 78 2789 363 244 684 632 Hop 71 | . 8 6 . 1 12 . 9 . 16 . . 1 5 1 1 . 1 . . 4 . . 2 1 . 2 1 Pick Up 179 | 1 9 2 1 . 3 4 10 5 20 11 . 3 . 3 . 1 . 2 1 6 4 1 85 1 . 1 5 Fast Attach 154 | 5 6 1 1 . 3 12 9 1 21 . . 2 8 . 4 2 3 4 1 7 . 1 16 12 2 12 21 Attach 77 | . 2 . 3 . 5 10 3 5 12 7 5 . 1 2 1 1 . 1 . 5 2 2 6 1 . 1 2 Detach 27 | . 2 . 1 . . 5 2 . 3 1 . . . 3 . 1 . . . 2 1 . 5 . . . 1 Swap 45 | . 6 1 . . 3 5 4 . 4 . . . 1 . . . . 4 1 2 1 1 6 . 1 3 2 Drop 260 | 1 6 4 3 . 1 12 9 4 30 9 2 . 1 . . . . 6 2 11 5 . 105 11 1 15 22 Fire 175 | 15 25 . . . 14 38 42 . 7 . . . 3 1 . 3 8 . 6 . 5 3 4 . . . 1 Melee 295 | . . . . . 19 25 12 6 39 18 . . 12 4 3 11 9 4 3 41 4 1 28 4 12 23 17 Ram . | . . . . . . . . . . . . . . . . . . . . . . . . . . . . Kick . | . . . . . . . . . . . . . . . . . . . . . . . . . . . . Crush 5 | . . . . . . . . . . 5 . . . . . . . . . . . . . . . . . Escape Stasis 235 | . . . . . . 102 . 4 29 . . . . 31 . . . . . . . . . . 65 . 4 Rewire 42 | . . . . . . 12 . . . . . . . . . 1 . . . . 28 1 . . . . . Trap . | . . . . . . . . . . . . . . . . . . . . . . . . . . . . Miscellaneous . | . . . . . . . . . . . . . . . . . . . . . . . . . . . . Route ------- -11/Scrapyard -10/Materials (discovered 6 exits: [*Mat x3] / *Min x2 / Sub) -10/Mines (discovered 2 exits: [*Mat] / *Exi) -10/Exiles -9/Mines -8/Materials (discovered 4 exits: *Fac x3 / Gar) -8/Garrison (discovered 4 exits: *Mat x4) -8/Materials (discovered 4 exits: *Fac x3 / Gar) -8/Garrison (discovered 2 exits: *Fac x2) -7/Factory (discovered 7 exits: *Fac x4 / Low x2 / Gar) -7/Garrison -6/Factory -6/DSF -5/Factory -5/Garrison (discovered 2 exits: *Fac x2) -4/Factory -4/Upper Caves -4/Upper Caves -4/Zhirov -3/Proximity Caves -3/Research (discovered 4 exits: *Res x2 / [*Arm] / Gar) -3/Garrison -3/Research -3/Quarantine -2/Research -2/Garrison -2/Research -1/Access Tau Ceti IV Orbit History --------- Turn | Location | Event 8 | -11/Scrapyard | Discovered new exit (range 15) 66 | -11/Scrapyard | Entered Materials 67 | -10/Materials | Met a group of wandering Federalists 120 | -10/Materials | Discovered new exit (range 10) 163 | -10/Materials | Discovered new exit (range 10) 198 | -10/Materials | Discovered new exit (range 14) 266 | -10/Materials | Identified exit to Mines 313 | -10/Materials | Build established: Mutant 345 | -10/Materials | Discovered new exit (range 11) 347 | -10/Materials | Learned location of 2 exits from Subcaves 419 | -10/Materials | Loaded intel: 20 trap records 446 | -10/Materials | Repaired Assault Rifle 479 | -10/Materials | Identified exit to Subcaves 479 | -10/Materials | Learned location of 1 exit from Materials 571 | -10/Materials | Learned Materials trap positions 621 | -10/Materials | Learned location of 1 exit from Recycling 680 | -10/Materials | Learned location of Mines (-10) 688 | -10/Materials | Entered Mines 688 | -10/Mines | Discovered new exit (range 9) 690 | -10/Mines | Learned location of 1 exit from Materials 706 | -10/Mines | Met a Derelict bent on vengeance 732 | -10/Mines | Met a Derelict shopkeep closing up shop 784 | -10/Mines | Deemed a non-threat by the Exiles lab entrance 784 | -10/Mines | Discovered new exit (range 5) 786 | -10/Mines | Entered Exiles 787 | -10/Exiles | Identified exit to Mines 795 | -10/Exiles | Met 8R-AWN 802 | -10/Exiles | Met EX-HEX 812 | -10/Exiles | Met EX-BIN 817 | -10/Exiles | Aligned with FarCom system 817 | -10/Exiles | Given EX-Vault access code 826 | -10/Exiles | Opened EX-Vault 835 | -10/Exiles | Found AWS/Autocannon 844 | -10/Exiles | Warned to stay clear of 0b10 Research branches 854 | -10/Exiles | Met EX-DEC 857 | -10/Exiles | Learned location of Zion (-6) 873 | -10/Exiles | Left Exiles lab with AWS/Autocannon 873 | -10/Exiles | Entered Mines 881 | -9/Mines | Discovered new exit (range 6) 883 | -9/Mines | Entered Materials 883 | -8/Materials | Evolved 4 slots: Propulsion x2, Utility x1, Weapon x1 884 | -8/Materials | Identified exit to Factory 885 | -8/Materials | Loaded intel: 16 trap records 1067 | -8/Materials | Central database locked down 1205 | -8/Materials | Build established: Hacker-Sprinter 1267 | -8/Materials | Learned 2 Storage zone layouts 1287 | -8/Materials | Discovered exit to Factory (range 15) 1305 | -8/Materials | Identified exit to Garrison 1305 | -8/Materials | Entered Garrison 1415 | -8/Garrison | Garrison Relay disabled 1430 | -8/Garrison | Triggered checkpoint 1476 | -8/Garrison | Discovered new exit (range 7) 1482 | -8/Garrison | Lost 5 parts (3n2w) 1605 | -8/Garrison | Triggered checkpoint 1612 | -8/Garrison | Lost 4 parts (2n2w) 1637 | -8/Garrison | Triggered checkpoint 1771 | -8/Garrison | Triggered checkpoint 1835 | -8/Garrison | Garrison Relay disabled 1907 | -8/Garrison | Discovered new exit (range 3) 2084 | -8/Garrison | Discovered new exit (range 13) 2141 | -8/Garrison | Triggered checkpoint 2168 | -8/Garrison | Discovered new exit (range 7) 2168 | -8/Garrison | Discovered new exit (range 72) 2168 | -8/Garrison | Discovered new exit (range 77) 2168 | -8/Garrison | Discovered new exit (range 38) 2168 | -8/Garrison | Learned Materials security intel 2177 | -8/Garrison | Garrison Relay disabled 2335 | -8/Garrison | Build established: Scavenger-Skirmisher 2462 | -8/Garrison | Installed Relay Interface Framework 2557 | -8/Garrison | Triggered checkpoint 2625 | -8/Garrison | Expanded RIF knowledge: Patrol Navigation 2667 | -8/Garrison | Triggered checkpoint 2806 | -8/Garrison | Entered Materials 2806 | -8/Materials | Accompanied by 2 allies 2868 | -8/Materials | Repaired Scythe 3049 | -8/Materials | Discovered exit to Factory (range 8) 3110 | -8/Materials | Build established: Scavenger-Mutant 3200 | -8/Materials | Repaired Sml. Storage Unit 3206 | -8/Materials | First assault squad dispatched 3281 | -8/Materials | Core integrity fell below 50% 3344 | -8/Materials | Discovered exit to Factory (range 14) 3442 | -8/Materials | Lost 6 parts (1p3n2w) 3449 | -8/Materials | Discovered exit to Factory (range 10) 3502 | -8/Materials | Core integrity fell below 20% 3514 | -8/Materials | Learned Storage emergency access door positions 3551 | -8/Materials | Learned location of 1 exit from Recycling 3580 | -8/Materials | Learned 2 Lower Caves zone layouts 3612 | -8/Materials | Learned location of 1 exit from Recycling 3614 | -8/Materials | Learned Factory stockpile data 3615 | -8/Materials | Repaired Flight Unit 3685 | -8/Materials | Learned location of Lower Caves (-6) 3709 | -8/Materials | Identified exit to Garrison 3709 | -8/Materials | Entered Garrison 3731 | -8/Garrison | Triggered checkpoint 3731 | -8/Garrison | Build established: Hacker-Mutant 3777 | -8/Garrison | Triggered checkpoint 3786 | -8/Garrison | Discovered exit to Factory (range 10) 3873 | -8/Garrison | Triggered checkpoint 3887 | -8/Garrison | System corruption reached 10% 4067 | -8/Garrison | Discovered exit to Factory (range 15) 4090 | -8/Garrison | Expanded RIF knowledge: Watcher Feeds 4099 | -8/Garrison | Build established: Hacker-Skirmisher 4160 | -8/Garrison | Garrison Relay disabled 4247 | -8/Garrison | Entered Factory 4247 | -7/Factory | Evolved 2 slots: Utility x2 4412 | -7/Factory | Repaired Lgt. Angular Momentum Engine 4448 | -7/Factory | Build established: Hacker-Mutant 4828 | -7/Factory | Learned Extension security intel 4842 | -7/Factory | Discovered new exit (range 10) 4884 | -7/Factory | Identified exit to Lower Caves 4929 | -7/Factory | Learned location of 2 exits from Archives 4964 | -7/Factory | Identified exit to Factory 4990 | -7/Factory | Build established: Hacker-Sprinter 5006 | -7/Factory | Learned location of Lower Caves (-7) 5021 | -7/Factory | Loaded intel: 6 fabricator locations 5048 | -7/Factory | Loaded intel: 77 trap records 5085 | -7/Factory | Learned 2 Hub_04(d) zone layouts 5126 | -7/Factory | Cargo convoy interrupted 5165 | -7/Factory | Repaired Cld. VTOL Module 5236 | -7/Factory | Repaired Cld. VTOL Module 5370 | -7/Factory | Fabricated Hvy. Siege Treads (x1) 5390 | -7/Factory | Fabricated Hvy. Siege Treads (x1) 5436 | -7/Factory | Found Powered Armor 5501 | -7/Factory | Identified exit to Garrison 5524 | -7/Factory | Entered Garrison 5524 | -7/Garrison | Accompanied by 2 allies 5585 | -7/Garrison | Expanded RIF knowledge: Hotswap 5615 | -7/Garrison | AWS/Autocannon suddenly broke down 5680 | -7/Garrison | Triggered checkpoint 5697 | -7/Garrison | Garrison Relay disabled 5780 | -7/Garrison | Triggered checkpoint 5784 | -7/Garrison | Triggered checkpoint 5858 | -7/Garrison | Triggered checkpoint 5878 | -7/Garrison | Discovered exit to Factory (range 10) 5880 | -7/Garrison | Lost 5 parts (1p2u2w) 5894 | -7/Garrison | Entered Factory 5894 | -6/Factory | Evolved 2 slots: Propulsion x1, Utility x1 5960 | -6/Factory | Identified exit to DSF 5960 | -6/Factory | Entered DSF 5978 | -6/DSF | Additional patrols routed to DSF 5998 | -6/DSF | Discovered new exit (range 14) 6005 | -6/DSF | Entered Factory 6005 | -5/Factory | Evolved 2 slots: Propulsion x1, Utility x1 6024 | -5/Factory | System Shield fried by hacking feedback 6046 | -5/Factory | Repaired Remote Datajack 6120 | -5/Factory | Fabricated Xenon Bombardment Thruster (x2) 6166 | -5/Factory | Identified exit to Garrison 6232 | -5/Factory | Fabricated B-60 Warrior (x3) 6305 | -5/Factory | Lost 3 allies 6310 | -5/Factory | Repaired Lgt. Angular Momentum Engine 6345 | -5/Factory | Entered Garrison 6396 | -5/Garrison | Discovered new exit (range 15) 6407 | -5/Garrison | Build established: Bothacker-Sprinter 6445 | -5/Garrison | Triggered checkpoint 6471 | -5/Garrison | Discovered new exit (range 13) 6474 | -5/Garrison | Expanded RIF knowledge: Command Fork 6479 | -5/Garrison | Entered Factory 6479 | -4/Factory | Evolved 2 slots: Power x1, Propulsion x1 6547 | -4/Factory | Discovered new exit (range 7) 6554 | -4/Factory | Entered Upper Caves 6556 | -4/Upper Caves | Encountered a Warlord checkpoint 6592 | -4/Upper Caves | Attracted the attention of an 0b10 checkpoint 6605 | -4/Upper Caves | Learned location of 1 exit from Research 6674 | -4/Upper Caves | Learned location of Testing (-2) 6707 | -4/Upper Caves | Discovered new exit (range 3) 6736 | -4/Upper Caves | Entered another Upper Caves area 6736 | -4/Upper Caves | Accompanied by 1 ally 6854 | -4/Upper Caves | Attracted the attention of an 0b10 outpost 6969 | -4/Upper Caves | Discovered new exit (range 9) 7002 | -4/Upper Caves | Entered Zhirov 7002 | -4/Zhirov | Discovered new exit (range 3) 7006 | -4/Zhirov | Met Zhirov 7011 | -4/Zhirov | Found Alien Artifact 7011 | -4/Zhirov | Identified Integrated Reactor 7011 | -4/Zhirov | Installed Integrated Reactor, increased core energy generation (+10) 7048 | -4/Zhirov | Found Alien Artifact 7055 | -4/Zhirov | Learned location of Quarantine (-3) 7055 | -4/Zhirov | Learned location of Command (-1) 7056 | -4/Zhirov | Zhirov requested help retrieving the SGEMP Prototype 7064 | -4/Zhirov | Entered Proximity Caves 7136 | -3/Proximity Caves | Encountered a Derelict sapper outpost 7153 | -3/Proximity Caves | Discovered new exit (range 10) 7155 | -3/Proximity Caves | Entered Research 7155 | -3/Research | Evolved 2 slots: Propulsion x1, Utility x1 7156 | -3/Research | Identified exit to Research 7162 | -3/Research | Discovered new exit (range 22) 7306 | -3/Research | Build established: Scavenger-Sprinter 7361 | -3/Research | Discovered exit to Research (range 30) 7475 | -3/Research | Garrison activated, responded to threat 7490 | -3/Research | Lost 4 parts (2p1n1u) 7520 | -3/Research | Identified exit to Garrison 7529 | -3/Research | Entered Garrison 7561 | -3/Garrison | Discovered new exit (range 5) 7563 | -3/Garrison | Triggered checkpoint 7581 | -3/Garrison | Garrison Relay disabled 7585 | -3/Garrison | Triggered checkpoint 7621 | -3/Garrison | Expanded RIF knowledge: Coupler Efficiency 7662 | -3/Garrison | Entered Research 7662 | -3/Research | Accompanied by 3 allies 7685 | -3/Research | Discovered new exit (range 7) 7702 | -3/Research | Entered Quarantine 7702 | -3/Quarantine | Accompanied by 4 allies 7703 | -3/Quarantine | Maximum security lockdown engaged 7712 | -3/Quarantine | Found Alien Slashing Weapon 7712 | -3/Quarantine | Identified Sigix Broadsword 7745 | -3/Quarantine | Found Alien Artifact 7745 | -3/Quarantine | Identified Phase Redirector 7776 | -3/Quarantine | Cryocooling Duct disabled 7791 | -3/Quarantine | Ambient heat levels rising (+20) 7816 | -3/Quarantine | Cryocooling Duct disabled 7820 | -3/Quarantine | Cryocooling Duct disabled 7822 | -3/Quarantine | Cryocooling Duct disabled 7831 | -3/Quarantine | Ambient heat levels rising (+20) 7835 | -3/Quarantine | Ambient heat levels rising (+20) 7837 | -3/Quarantine | Ambient heat levels rising (+20) 8003 | -3/Quarantine | Discovered exit to Research (range 5) 8005 | -3/Quarantine | Spotted Investigator 8254 | -3/Quarantine | Found Alien Artifact 8254 | -3/Quarantine | Identified Core Reset Matrix 8254 | -3/Quarantine | Identified Transdimensional Reconstructor 8254 | -3/Quarantine | Used Core Reset Matrix 8258 | -3/Quarantine | Detected hypermatrix surge 8258 | -3/Quarantine | Sensed 10 artifacts in vicinity 8461 | -3/Quarantine | Found Core Cannon 8482 | -3/Quarantine | Cryocooling Duct disabled 8497 | -3/Quarantine | Ambient heat levels rising (+20) 8568 | -3/Quarantine | Met incapacitated Sigix Warrior 8568 | -3/Quarantine | Lockdown squad dispatched 8572 | -3/Quarantine | Found Sigix Containment Pod 8716 | -3/Quarantine | Discovered exit to Research (range 15) 8760 | -3/Quarantine | Found Prototype Launcher 8763 | -3/Quarantine | Identified Containment Facilitator 8848 | -3/Quarantine | Found Sigix Corpse 8853 | -3/Quarantine | Found Sigix Corpse 9029 | -3/Quarantine | Found Prototype Device 9032 | -3/Quarantine | Identified Adv. EM Shield 9066 | -3/Quarantine | Found Prototype Hackware 9092 | -3/Quarantine | Identified Exp. System Shield 9153 | -3/Quarantine | Spotted Striker 9153 | -3/Quarantine | Spotted Investigator 9153 | -3/Quarantine | Spotted Striker 9153 | -3/Quarantine | Spotted Executioner 9153 | -3/Quarantine | Spotted Striker 9300 | -3/Quarantine | Entered Research 9300 | -2/Research | Evolved 2 slots: Propulsion x1, Utility x1 9426 | -2/Research | Identified exit to Garrison 9427 | -2/Research | Entered Garrison 9439 | -2/Garrison | Triggered checkpoint 9474 | -2/Garrison | Garrison Relay disabled 9570 | -2/Garrison | Spotted B-90 Cyclops 9572 | -2/Garrison | Triggered checkpoint 9606 | -2/Garrison | Garrison Relay disabled 9614 | -2/Garrison | Discovered new exit (range 11) 9616 | -2/Garrison | Entered Research 9677 | -2/Research | Build established: Hacker-Sprinter 9870 | -2/Research | Discovered new exit (range 3) 9872 | -2/Research | Identified exit to Access 9875 | -2/Research | Entered Access 9875 | -1/Access | Evolved 2 slots: Propulsion x1, Utility x1 9912 | -1/Access | Found Prototype Device 9912 | -1/Access | Identified Exp. Focal Shield 9980 | -1/Access | Repaired Broken Cld. Field Propulsion Drive 10045 | -1/Access | Spotted B-99 Colossus 10215 | -1/Access | Spotted B-99 Colossus 10217 | -1/Access | Spotted B-99 Colossus 10221 | -1/Access | Discovered new exit (range 5) 10224 | *** | Destroyed 0b10! Last Messages --------------- 10212_ Dropped Sigix Broadsword. 10213_ W-44 Eye sends out distress signal. 10214_ Acquired Sigix Broadsword. 10215_ Beam penetrates Wall. 10215_ Beam penetrates Earth. 10215_ Beam penetrates Sealed Heavy Doors. 10215_ Sealed Heavy Doors breached. 10215_ Beam penetrates Sealed Heavy Doors. 10216_ Slug penetrates Earth. 10216_ Penetrated by Slug. 10216_ Slug penetrates Wall. 10217_ Slug penetrates Earth. 10218_ ALERT: Potential suspicious activity detected, Programmers report to Access Zone 2U. 10218_ Dropped Core Cannon. 10219_ Acquired Core Cannon. 10221_ Main Access Shell breached. 10221_ EXIT=FOUND 10221_ Slug penetrates Sealed Heavy Doors. Map ----- +----------------------------------------------------+ | ?????????????????????## # """ ## " ##? | | ?????????????????????## # """ ]## ##? | | ?????????????????????## # " ## ##? | | ?????????????????????## # ############? | | ????????????????????? # # "###########? | | ????????????????????? # # % ####????????? | | ????????????????????? + + ! ###?????????? | | ????????????????????? # #####""#####??????????? | | ?????????????????? # #### ######??????????? | | ??????????????????##### ##"" ####?????????????? | | ??????????????????## " ###??????????????? | | ??????????????????## "###???????????????? | | ??????????????????## BB ####???????????????? | | ??????????????????## BB BB ###????????????????? | | ??????????????????## BB ##?????????????????? | | ??????????????????## ##?????????????????? | | ??????????????????## ##?????????????????? | | ??????????????????##"""" """"##?????????????????? | | ??????????????????##"?"" ""??"##?????????????????? | | ??????????????????##""" "???"##?????????????????? | | ??????????????????##"" """"""##??????????o??????? | | ??????????????????## ##?????????????????? | | ??????????????????## "" """ ##?????????????????? | | ??????????????????## " "? ##?????????????????? | | ????????????p?????## ?" "" "?????????????????????? | | ??????????????????## ?" "@ "?????????????????????? | | ??????????????????## ?" "?????????????????????? | | ????????????h?????## ?""""""?????????Y???????????? | | ?????????????????????????????????????????????????? | | ???????????h?????????????????????????????????????? | | ?????????????????????????????????????????????????? | | ?????????????????????????????????????????????????? | | ????????????w????????????????????????????????????? | | ?????????????????????????????????????????????????? | | ?????????????????????????????????????????????????? | | ?????????????????????????????????????????????????? | | ?????????????????????????????????????????????????? | | ?????????????????????????????????????????????????? | | ?????????????????????????????????????????????????? | | ?????????????????????????????????????????????????? | | ?????????????????????????????????????????????????? | | ?????????????????????????????????????????????????? | | ?????????????????????????????????????????????????? | | ?????????????????????????????????????????????????? | | ?????????????????????????????????????????????????? | | ?????????????????????????????????????????????????? | | ?????????????????????????????????????????????????? | | ?????????????????????????????????????????????????? | | ?????????????????????????????????????????????????? | | ?????????????????????????????????????????????????? | +----------------------------------------------------+ Best States ------------- Heat Dissipation 122 Coolant Potential 100 Energy Generation 59 Energy Capacity 440 Matter Stores 300 Matter Capacity 300 Sight Range 16 Terrain Scan Density 10 Cloak Strength 3 Power Amplification 30 Armor Coverage 400 Propulsion Shielding 90 Point Defense Rating 240 Melee Speed Boost 40 Phase Shifting 10 Evasion (%) 86 Recoil Reduction 4 Offensive Hacking 30 Defensive Hacking 28 Relay Coupler Types 2 Relay Coupler Value 61 Authchip Count 3 Item Schematics ----------------- Exp. Signal Interpreter | -3/Quarantine | Archive Centrium Heavy Treads | -3/Quarantine | Archive System Purifier | -3/Quarantine | Archive Hvy. Dispersion Rifle | -3/Quarantine | Archive Hvy. Neutron Cannon | -3/Quarantine | Archive Robot Schematics ------------------ None Fabricated ------------ Hvy. Siege Treads | x1 | -7/Factory | Authchip Hvy. Siege Treads | x1 | -7/Factory Xenon Bombardment Thruster | x2 | -5/Factory B-60 Warrior | x3 | -5/Factory | Preloaded Repaired ---------- Assault Rifle | 47% | -10/Materials Scythe | 2% | -8/Materials Sml. Storage Unit | 10% | -8/Materials Flight Unit | 5% | -8/Materials Lgt. Angular Momentum Engine | 21% | -7/Factory Cld. VTOL Module | 30% | -7/Factory Cld. VTOL Module | 50% | -7/Factory Remote Datajack | 5% | -5/Factory Lgt. Angular Momentum Engine | 61% | -5/Factory Cld. Field Propulsion Drive | 22% | -1/Access | Broken Alien Tech Used ----------------- Integrated Reactor Sigix Broadsword Phase Redirector Core Reset Matrix Core Cannon Achievements -------------- None Challenges ------------ None Game ------ Seed ChromaticTrapReconfigurator Manual? 0 Play Time 03:08:08 Cumulative 412.0 hours Start 2025.08.04 @ 15:16:34 End 2025.08.04 @ 18:51:53 Sessions 1 Manual Loads 0 Difficulty Rogue Special Mode None Game No. 188 Rogue 188 Adventurer 0 Explorer 0 Win Type 3 Total 29 Types 12/2/5/2/5/1/0/1/0/1 Lore% 93 Gallery% 83 Achievement% 78 Wizard Run 0 Options --------- Layout 1 ASCII 0 Keyboard 0 Movement Numpad Keybinds 0 Fullscreen 1 Font 24/Smallcaps Map View 50x35 Zoom Use 0% Tactical HUD 1 Map Filters NONE Filters NONE Steam 1 RUN: c320f5f0-4aa1-478c-af75-1d17ee27111d